bitfinex/quotes_SOLUSD_20240613
["timestamp","ask_amount","ask_price","bid_price","bid_amount"]
[1718247206748,10.0,152.12,152.02,0.68]
[1718247207449,10.0,152.1,152.02,0.51]
[1718247207756,10.0,152.1,152.01,19.89]
[1718247208939,10.0,152.1,152.02,0.17]
[1718247209136,10.0,152.1,152.02,0.51]
[1718247209328,10.0,152.08,152.02,0.17]
[1718247209631,10.0,152.08,152.01,0.34]
[1718247210742,22.7599,152.07,152.01,0.34]
[1718247212829,10.0,152.06,152.01,0.34]
[1718247213035,10.0,152.06,152.04,6.64]
[1718247215458,22.7599,152.07,152.05,6.64]
[1718247215652,16.5321,152.07,152.06,6.64]
[1718247216374,16.5321,152.07,152.04,0.17]
[1718247216662,16.5321,152.07,152.05,6.64]
[1718247216958,16.5321,152.07,152.01,0.34]
[1718247217160,16.5321,152.07,152.05,6.64]
[1718247217736,16.5321,152.07,152.04,6.64]
[1718247217960,16.5321,152.07,152.05,6.64]
[1718247218648,16.5321,152.07,152.06,6.64]
[1718247218960,16.5321,152.07,152.05,6.64]
[1718247219737,16.5321,152.07,152.04,6.64]
[1718247220564,16.5321,152.07,152.05,6.64]
[1718247221653,16.5321,152.07,152.06,6.64]
[1718247222038,16.5321,152.07,152.05,6.64]
[1718247222244,16.5321,152.07,152.02,0.34]
[1718247222438,16.5321,152.07,152.06,6.64]
[1718247223057,16.5321,152.07,152.05,6.64]
[1718247223548,16.5321,152.07,152.06,6.64]
[1718247224570,31.6828,152.11,152.06,6.64]
[1718247225465,31.6828,152.11,152.07,6.64]
[1718247227356,21.6828,152.11,152.08,0.17]
[1718247227668,21.6828,152.11,152.09,6.64]
[1718247227969,21.6828,152.11,152.05,0.17]
[1718247228271,15.7362,152.13,152.09,6.64]
[1718247230871,15.7362,152.13,152.02,15.073]
[1718247231048,15.7362,152.13,152.03,20.0]
[1718247231254,15.7362,152.13,152.08,6.64]
[1718247231573,10.0,152.12,152.08,6.64]
[1718247234083,10.0,152.12,152.04,0.17]
[1718247234266,10.0,152.12,152.08,6.64]
[1718247238582,10.0,152.12,152.09,6.64]
[1718247239665,15.7362,152.13,152.1,6.64]
[1718247241686,15.7362,152.13,152.04,0.17]
[1718247241994,15.7362,152.13,152.02,15.073]
[1718247241995,16.64,152.11,152.02,15.073]
[1718247242488,16.64,152.11,152.05,6.64]
[1718247242664,16.64,152.11,152.06,6.64]
[1718247243074,10.0,152.09,152.06,6.64]
[1718247243397,16.64,152.11,152.06,6.64]
[1718247243563,10.0,152.11,152.06,6.64]
[1718247243767,10.0,152.11,152.07,6.64]
[1718247244080,10.0,152.11,152.08,6.64]
[1718247244288,10.0,152.11,152.07,6.64]
[1718247244793,25.7362,152.13,152.0,126.56]
[1718247244961,25.7362,152.13,152.09,6.64]
[1718247245366,25.7362,152.13,152.01,20.68]
[1718247245581,10.0,152.11,152.06,6.64]
[1718247245768,10.0,152.11,152.07,6.64]
[1718247245982,25.7362,152.13,152.07,6.64]
[1718247246171,25.7362,152.13,152.08,6.64]
[1718247246593,10.0,152.11,152.08,6.64]
[1718247247097,10.0,152.11,152.06,0.17]
[1718247247389,10.0,152.11,152.07,6.64]
[1718247248669,10.0,152.11,152.06,6.64]
[1718247248878,10.0,152.11,152.05,6.64]
[1718247249084,16.64,152.11,152.06,6.64]
[1718247249291,16.64,152.11,151.98,16.0225]
[1718247249573,26.5254,152.07,152.03,6.64]
[1718247249787,26.5254,152.07,152.04,6.64]
[1718247249972,26.5254,152.07,152.01,1.31531074]
[1718247250173,26.5254,152.07,152.05,6.64]
[1718247250376,26.5254,152.07,152.04,6.64]
[1718247250590,26.5254,152.07,152.05,6.64]
[1718247251171,26.5254,152.07,151.98,16.0225]
[1718247251396,6.64,152.06,151.94,21.7245]
[1718247251701,16.5254,152.07,152.02,6.64]
[1718247252002,26.5254,152.07,152.04,6.64]
[1718247252201,26.5254,152.07,151.94,26.93365547]
[1718247252387,23.2577,152.04,151.94,21.7245]
[1718247252593,16.6177,152.04,151.99,6.64]
[1718247252813,16.6177,152.04,151.94,21.7245]
[1718247253111,16.6177,152.04,151.99,6.64]
[1718247253311,16.6177,152.04,151.94,21.7245]
[1718247253493,16.6177,152.04,152.0,6.64]
[1718247253802,10.0,152.06,152.02,6.64]
[1718247254000,10.0,152.06,151.94,21.7245]
[1718247254001,16.5254,152.07,151.96,0.17]
[1718247254173,22.3014,152.07,151.94,21.7245]
[1718247254376,22.3014,152.07,152.01,6.64]
[1718247254602,10.0,152.06,151.94,21.7245]
[1718247254982,10.0,152.04,151.94,15.5114]
[1718247255372,10.0,152.02,151.9,6.6042]
[1718247255574,10.0,152.02,151.97,6.64]
[1718247255789,10.0,152.0,151.97,5.64]
[1718247255989,6.64,152.02,151.9,6.6042]
[1718247256196,6.64,152.02,151.97,6.64]
[1718247256404,10.0,152.01,151.97,6.64]
[1718247256587,10.0,152.01,151.98,6.64]
[1718247256905,32.4459,152.03,152.0,6.64]
[1718247257286,25.8409,152.03,152.0,6.64]
[1718247257492,25.8409,152.03,152.01,6.64]
[1718247257803,13.245,152.07,151.95,0.17]
[1718247257804,22.4459,152.07,151.95,15.5741]
[1718247257985,22.4459,152.07,152.03,6.64]
[1718247258706,32.4459,152.07,152.03,6.64]
[1718247259001,32.4459,152.07,151.99,0.17]
[1718247259299,32.4459,152.07,151.99,0.68]
[1718247259881,32.4459,152.07,151.99,0.51]
[1718247260406,10.0,152.09,152.0,0.17]
[1718247260595,10.0,152.09,152.01,0.17]
[1718247260900,10.0,152.09,152.0,0.34]
[1718247261093,10.0,152.07,152.01,0.17]
[1718247261293,10.0,152.07,152.01,0.51]
[1718247261697,10.0,152.07,152.0,0.17]
[1718247262004,10.0,152.07,152.0,0.51]
[1718247262388,61.0731,152.12,152.0,0.51]
[1718247262389,10.0,152.05,152.0,0.51]
[1718247263882,25.9459,152.05,152.0,0.34]
[1718247264101,10.0,152.03,151.95,35.3441]
[1718247264308,22.3809,152.05,151.95,35.3441]
[1718247264309,32.3809,152.05,151.95,35.3441]
[1718247265197,32.3809,152.05,151.95,15.4041]
[1718247265421,32.3809,152.05,151.95,35.3441]
[1718247265583,32.3809,152.05,151.96,0.68]
[1718247265785,32.3809,152.05,151.96,20.68]
[1718247266386,15.9459,152.05,151.99,0.17]
[1718247266711,15.9459,152.05,151.99,0.68]
[1718247268390,25.9459,152.05,151.99,0.68]
[1718247269407,10.0,152.07,151.99,0.68]
[1718247269583,10.0,152.07,151.96,20.0]
[1718247269787,10.0,152.07,151.97,19.94]
[1718247270801,10.0,152.05,151.97,19.94]
[1718247271515,10.0,152.03,151.96,20.0]
[1718247271719,10.0,152.06,151.96,20.0]
[1718247272015,10.0,152.06,151.97,0.17]
[1718247272314,10.0,152.06,151.97,0.68]
[1718247273291,10.0,152.06,151.99,0.17]
[1718247273494,10.0,152.06,151.99,0.68]
[1718247274301,22.7289,152.09,152.02,0.17]
[1718247274495,22.7289,152.09,152.02,0.68]
[1718247275326,22.7289,152.09,152.02,0.17]
[1718247275528,10.0,152.07,152.01,19.94]
[1718247275818,32.7289,152.09,152.02,0.90883174]
[1718247275999,10.0,152.07,152.02,0.51]
[1718247276195,32.7289,152.09,152.02,0.51]
[1718247277726,32.7289,152.09,152.03,0.17]
[1718247277896,26.2076,152.09,152.03,0.17]
[1718247279421,26.2076,152.09,152.02,0.51]
[1718247279798,10.0,152.07,151.95,15.4041]
[1718247280000,10.0,152.07,151.96,19.94]
[1718247280001,10.0,152.05,151.96,19.94]
[1718247280218,16.6292,152.07,151.96,19.94]
[1718247280422,10.0,152.05,151.96,19.94]
[1718247280621,16.6292,152.07,151.96,19.94]
[1718247281024,10.0,152.05,151.95,15.4041]
[1718247281224,10.0,152.05,151.97,0.17]
[1718247281449,6.6292,152.07,151.97,0.68]
[1718247282336,10.0,152.06,151.97,20.62]
[1718247287307,10.0,152.06,151.97,0.68]
[1718247288748,10.0,152.04,151.97,0.68]
[1718247290357,10.0,152.04,151.95,35.3441]
[1718247290645,15.8177,152.03,151.95,35.3441]
[1718247291032,10.0,152.01,151.95,35.3441]
[1718247291334,10.0,152.01,151.94,6.5066]
[1718247291531,25.8177,152.03,151.92,19.94]
[1718247291731,10.0,152.01,151.92,19.94]
[1718247292044,10.0,152.01,151.91,15.513]
[1718247292264,10.0,152.01,151.92,19.94]
[1718247292557,10.0,152.01,151.93,0.51]
[1718247292734,10.0,152.01,151.94,0.34]
[1718247292937,6.4534,152.0,151.91,15.513]
[1718247293668,10.0,151.98,151.91,15.513]
[1718247295248,16.4534,152.0,151.91,15.513]
[1718247295453,16.4534,152.0,151.92,0.34]
[1718247295652,16.4534,152.0,151.93,0.34]
[1718247295966,16.4534,152.0,151.94,0.17]
[1718247296852,16.4534,152.0,151.93,0.34]
[1718247297946,10.0,151.98,151.93,0.34]
[1718247298641,10.0,151.98,151.92,0.17]
[1718247298842,10.0,151.98,151.91,15.513]
[1718247299036,10.0,151.98,151.92,0.51]
[1718247299653,10.0,151.98,151.92,0.34]
[1718247299836,10.0,151.98,151.92,0.17]
[1718247300342,10.0,151.98,151.92,0.34]
[1718247300549,10.0,151.98,151.93,0.17]
[1718247301364,10.0,151.98,151.92,0.34]
[1718247301530,10.0,151.98,151.92,0.17]
[1718247302028,9.81181085,151.99,151.92,0.68]
[1718247302343,9.81181085,152.01,151.95,0.17]
[1718247302534,10.0,152.04,151.95,20.68]
[1718247302742,264.3,152.06,151.98,0.17]
[1718247303061,264.3,152.06,151.98,0.68]
[1718247303431,264.3,152.06,151.98,20.68]
[1718247303846,264.3,152.06,151.98,0.51]
[1718247304432,264.3,152.06,151.99,0.17]
[1718247304951,264.3,152.06,152.0,0.34]
[1718247305157,264.3,152.06,152.01,0.17]
[1718247305357,264.3,152.06,151.94,20.0]
[1718247305562,264.3,152.06,151.96,0.17]
[1718247305965,10.0,152.04,151.96,0.17]
[1718247306133,10.0,152.02,151.96,0.17]
[1718247306833,10.0,152.0,151.93,15.934]
[1718247307239,10.0,151.98,151.91,19.94]
[1718247307434,10.0,152.0,151.89,36.0676]
[1718247307740,10.0,151.98,151.89,36.0676]
[1718247308460,10.0,151.98,151.9,0.34]
[1718247308659,10.0,151.98,151.91,0.34]
[1718247308967,10.0,151.98,151.92,0.34]
[1718247309144,10.0,151.98,151.93,0.34]
[1718247309661,10.0,151.98,151.89,19.94]
[1718247310356,10.0,151.98,151.88,6.5687]
[1718247311743,10.0,151.96,151.89,0.17]
[1718247311959,10.0,151.96,151.9,0.17]
[1718247312160,10.0,151.96,151.86,25.10101862]
[1718247312335,10.0,151.96,151.87,20.3743288]
[1718247312669,10.0,151.94,151.87,0.3743288]
[1718247312845,10.0,151.91,151.87,0.3743288]
[1718247313267,16.4802,151.91,151.87,0.3743288]
[1718247313456,6.4802,151.91,151.87,0.3743288]
[1718247314061,10.0,151.89,151.87,0.3743288]
[1718247314471,15.7939,151.88,151.87,0.3743288]
[1718247314648,15.7939,151.88,151.8,2.4374]
[1718247314960,16.4802,151.91,151.81,19.94]
[1718247315152,6.4802,151.91,151.82,115.1304]
[1718247315457,6.4802,151.91,151.82,15.1304]
[1718247315659,6.4802,151.91,151.83,2.4368]
[1718247315844,15.3709,151.92,151.84,0.17]
[1718247316035,15.3709,151.92,151.84,0.51]
[1718247316239,15.3709,151.92,151.85,0.17]
[1718247316462,10.0,151.93,151.86,0.17]
[1718247316662,10.0,151.93,151.86,0.51]
[1718247316970,10.0,151.93,151.86,0.34]
[1718247317174,10.0,151.93,151.87,0.17]
[1718247317352,10.0,151.93,151.88,0.17]
[1718247317673,10.0,151.93,151.88,0.34]
[1718247317843,32.0403,151.95,151.89,0.17]
[1718247319673,32.0403,151.95,151.88,0.34]
[1718247320168,32.0403,151.95,151.89,0.17]
[1718247321270,10.0,151.98,151.89,0.17]
[1718247321447,10.0,151.98,151.9,36.1062]
[1718247321643,10.0,151.98,151.92,0.17]
[1718247322144,15.4505,151.99,151.92,0.17]
[1718247322355,15.4505,151.99,151.92,1.30154986]
[1718247322568,15.4505,151.99,151.94,0.17]
[1718247323456,26.2843,152.03,151.94,0.17]
[1718247323763,10.0,152.03,151.94,0.17]
[1718247323942,6.2614,152.04,151.94,0.17]
[1718247324147,10.0,152.02,151.94,0.17]
[1718247324368,10.0,152.02,151.94,20.11]
[1718247324568,16.2614,152.04,151.96,0.17]
[1718247324768,6.2614,152.04,151.96,0.17]
[1718247324947,19.81502842,152.06,151.96,0.17]
[1718247325146,10.0,152.06,151.96,0.17]
[1718247325976,10.0,152.06,151.97,15.3578]
[1718247326146,10.0,152.06,151.98,0.68]
[1718247326969,26.10292842,152.07,151.98,0.68]
[1718247327188,16.2879,152.07,151.98,0.68]
[1718247327853,10.0,152.08,151.98,100.68]
[1718247328052,10.0,152.08,151.98,120.68]
[1718247328265,10.0,152.08,152.01,0.17]
[1718247328473,10.0,152.08,152.01,20.68]
[1718247328646,10.0,152.08,152.02,0.79228576]
[1718247328858,10.0,152.08,152.03,0.51]
[1718247329973,10.0,152.08,151.97,137.59044691]
[1718247330158,19.81502842,152.08,151.98,20.0]
[1718247330365,10.0,152.08,151.98,20.0]
[1718247330570,10.0,152.06,151.97,21.7799]
[1718247331978,10.0,152.06,151.98,0.68]
[1718247332357,19.81502842,152.08,151.98,0.68]
[1718247332779,10.0,152.08,151.98,0.68]
[1718247333291,10.0,152.05,151.97,21.7799]
[1718247333458,10.0,152.05,151.93,16.0795]
[1718247333459,10.0,152.03,151.93,16.0795]
[1718247333657,16.1559,152.04,151.94,20.0]
[1718247334254,10.0,152.03,151.93,16.0795]
[1718247334780,10.0,152.01,151.92,19.94]
[1718247335864,10.0,152.01,151.93,0.68]
[1718247342865,10.0,152.03,151.95,0.17]
[1718247343173,10.0,152.03,151.95,0.68]
[1718247343479,16.1559,152.04,151.95,20.68]
[1718247343884,25.85932842,152.05,151.96,15.8576]
[1718247344072,16.0443,152.05,151.97,0.51]
[1718247344271,16.0443,152.05,151.98,0.17]
[1718247346863,10.0,152.07,151.99,0.17]
[1718247347185,16.3165,152.08,152.01,0.17]
[1718247347499,16.3165,152.08,152.01,0.68]
[1718247348562,16.3165,152.08,152.01,0.51]
[1718247349480,10.0,152.06,152.01,0.51]
[1718247349990,10.0,152.06,152.01,0.34]
[1718247352194,26.11919596,152.08,152.01,0.34]
[1718247352398,16.3165,152.08,152.01,0.34]
[1718247352695,36.11919596,152.08,152.01,0.34]
[1718247353192,36.11919596,152.08,152.02,0.17]
[1718247353389,26.3165,152.08,152.03,0.17]
[1718247353591,10.0,152.05,151.96,120.0]
[1718247353797,10.0,152.05,151.97,0.34]
[1718247353975,10.0,152.05,151.99,0.17]
[1718247354591,10.0,152.05,151.95,6.2617]
[1718247354972,10.0,152.03,151.95,6.2617]
[1718247355474,10.0,152.01,151.91,11.49268991]
[1718247355782,16.2035,152.01,151.91,6.2483]
[1718247355986,26.2035,152.01,151.91,6.2483]
[1718247356572,10.0,151.99,151.91,6.2483]
[1718247356792,10.0,151.99,151.92,20.34]
[1718247357596,10.0,151.99,151.92,20.0]
[1718247357790,16.2035,152.01,151.91,6.2483]
[1718247357791,36.00619596,152.01,151.91,6.2483]
[1718247358297,10.0,151.99,151.91,6.2483]
[1718247358499,10.0,151.99,151.9,15.6728]
[1718247358799,10.0,151.97,151.9,15.6728]
[1718247359020,19.79544708,152.0,151.9,15.6728]
[1718247359508,25.99894708,152.01,151.9,115.6728]
[1718247359882,25.99894708,152.01,151.91,20.0]
[1718247360088,25.99894708,152.01,151.92,0.51]
[1718247360395,25.99894708,152.01,151.94,0.17]
[1718247360602,9.79544708,152.01,151.94,0.51]
[1718247361200,16.386,152.02,151.94,0.51]
[1718247361400,10.0,152.03,151.94,0.51]
[1718247361602,25.5646,152.05,151.95,0.17]
[1718247361979,25.5646,152.05,151.96,0.17]
[1718247362200,25.5646,152.05,151.96,0.51]
[1718247362509,10.0,152.05,151.97,0.17]
[1718247362686,19.79747367,152.05,151.98,0.17]
[1718247363207,19.79747367,152.07,151.98,0.17]
[1718247363385,19.79747367,152.07,151.98,100.17]
[1718247363701,19.79747367,152.07,152.0,0.17]
[1718247364012,19.79747367,152.07,152.0,0.34]
[1718247364190,19.79747367,152.07,152.02,0.17]
[1718247365687,10.0,152.05,152.01,0.34]
[1718247365883,10.0,152.05,152.01,0.17]
[1718247367307,19.79747367,152.05,151.96,16.3182]
[1718247367684,9.79747367,152.04,151.96,16.3182]
[1718247368205,19.79747367,152.05,151.96,16.3182]
[1718247368408,19.79747367,152.05,151.97,0.17]
[1718247368611,19.79747367,152.05,151.97,0.51]
[1718247368992,10.0,152.05,151.98,0.17]
[1718247369194,9.79747367,152.06,151.99,0.17]
[1718247369414,9.79747367,152.05,151.99,0.17]
[1718247369708,9.79747367,152.06,151.99,0.17]
[1718247370288,9.79747367,152.06,151.99,100.17]
[1718247370618,9.79747367,152.08,152.01,0.17]
[1718247370984,16.2056,152.12,152.01,0.17]
[1718247370985,9.79747367,152.09,152.01,0.17]
[1718247371309,16.2056,152.12,152.01,0.17]
[1718247371310,9.79747367,152.08,152.01,0.17]
[1718247371713,9.80259472,152.09,152.01,0.17]
[1718247372804,19.80259472,152.09,151.95,232.70652242]
[1718247373005,10.0,152.07,151.97,20.0]
[1718247373212,19.80259472,152.07,151.98,100.0]
[1718247373585,19.80259472,152.07,151.97,20.0]
[1718247373787,19.80259472,152.07,151.96,116.3182]
[1718247374002,9.80259472,152.06,151.96,16.3182]
[1718247374293,9.80259472,152.06,151.97,0.68]
[1718247374712,19.80259472,152.07,151.97,0.68]
[1718247375402,19.80259472,152.07,151.97,20.68]
[1718247375597,9.80259472,152.06,151.97,20.0]
[1718247375803,9.80259472,152.06,151.96,16.3182]
[1718247375996,9.80259472,152.06,151.98,100.0]
[1718247376595,10.0,152.07,151.98,100.0]
[1718247376596,19.80259472,152.07,151.98,100.0]
[1718247376909,19.80281975,152.07,151.99,0.34]
[1718247377109,19.80281975,152.07,152.0,0.34]
[1718247377309,19.80281975,152.07,152.01,0.17]
[1718247377897,19.80281975,152.07,152.01,0.34]
[1718247378222,19.80281975,152.07,152.03,0.17]
[1718247378517,9.80281975,152.07,152.03,0.17]
[1718247379298,9.80281975,152.08,152.03,0.17]
[1718247380506,9.80281975,152.08,152.03,0.34]
[1718247381215,9.80281975,152.08,152.04,0.34]
[1718247382416,19.80281975,152.09,152.05,0.17]
[1718247382594,19.80281975,152.09,152.04,0.34]
[1718247383214,10.0,152.09,152.04,0.34]
[1718247383422,19.81004373,152.09,152.04,0.34]
[1718247386697,9.81004373,152.08,152.04,0.34]
[1718247387119,10.0,152.09,152.04,0.34]
[1718247387720,10.0,152.09,152.04,0.17]
[1718247388020,19.8097448,152.06,151.97,19.94]
[1718247388227,10.0,152.04,151.96,16.3182]
[1718247388413,19.80913915,152.04,151.96,16.3182]
[1718247388802,9.80913915,152.03,151.96,16.3182]
[1718247390306,19.80913915,152.02,151.95,19.94]
[1718247390819,19.80913915,152.02,151.92,135.9888]
[1718247391134,10.0,151.98,151.92,16.0488]
[1718247391303,19.80913915,152.0,151.92,16.0488]
[1718247391724,9.80913915,151.98,151.92,16.0488]
[1718247392409,9.80913915,151.98,151.93,0.34]
[1718247392728,10.0,151.97,151.88,16.0488]
[1718247392902,10.0,151.97,151.88,35.9888]
[1718247393527,10.0,151.95,151.88,35.9888]
[1718247393710,10.0,151.97,151.88,16.0488]
[1718247394209,22.0562,151.99,151.88,16.0488]
[1718247394210,10.0,151.95,151.88,16.0488]
[1718247394921,10.0,151.95,151.9,0.17]
[1718247395119,10.0,151.93,151.8,200.0]
[1718247395511,10.0,151.93,151.81,19.94]
[1718247395814,9.80935513,151.92,151.81,19.94]
[1718247396422,10.0,151.93,151.81,19.94]
[1718247396423,19.80935513,151.93,151.81,19.94]
[1718247396616,10.0,151.91,151.81,19.94]
[1718247397012,10.0,151.91,151.82,100.0]
[1718247397719,10.0,151.91,151.81,19.94]
[1718247397918,10.0,151.91,151.82,100.0]
[1718247398207,10.0,151.91,151.83,0.17]
[1718247398425,10.0,151.91,151.83,0.68]
[1718247399935,10.0,151.91,151.85,0.17]
[1718247400113,22.0562,151.94,151.86,100.0]
[1718247400324,10.0,151.95,151.87,20.62]
[1718247400531,10.0,151.95,151.89,0.17]
[1718247400723,10.0,151.95,151.89,0.68]
[1718247402037,6.1858,151.99,151.91,0.17]
[1718247402242,9.81440577,152.01,151.91,0.68]
[1718247402430,34.84540577,152.02,151.94,0.17]
[1718247402633,24.84540577,152.02,151.94,0.68]
[1718247402836,6.3983,152.03,151.94,20.68]
[1718247403248,6.3983,152.03,151.94,120.68]
[1718247403752,6.3983,152.03,151.94,20.68]
[1718247404925,6.3983,152.03,151.94,0.68]
[1718247405127,10.0,152.02,151.91,21.5069]
[1718247406048,10.0,152.02,151.92,100.0]
[1718247406233,10.0,152.02,151.91,21.5069]
[1718247406566,10.0,152.02,151.92,0.68]
[1718247406744,10.0,152.02,151.94,0.17]
[1718247406954,10.0,152.02,151.94,0.68]
[1718247407139,10.0,152.02,151.95,0.17]
[1718247407340,10.0,152.02,151.96,0.17]
[1718247408244,10.0,152.02,151.95,0.34]
[1718247408452,10.0,152.02,151.96,0.17]
[1718247409225,10.0,152.02,151.97,0.17]
[1718247409830,10.0,152.02,151.97,0.34]
[1718247410149,10.0,152.02,151.98,0.34]
[1718247412248,10.0,152.02,151.99,0.34]
[1718247412450,22.4678,152.01,151.88,5.2529613]
[1718247412654,10.0,151.97,151.87,19.94]
[1718247414043,10.0,151.97,151.84,200.0]
[1718247414350,10.0,151.97,151.86,19.94]
[1718247414662,10.0,151.97,151.87,20.0]
[1718247417465,10.0,151.95,151.86,19.94]
[1718247418647,10.0,151.95,151.87,0.51]
[1718247418846,10.0,151.95,151.88,0.34]
[1718247419049,10.0,151.95,151.86,19.94]
[1718247419338,21.6918,151.94,151.83,19.94]
[1718247419551,10.0,151.93,151.84,20.0]
[1718247420457,10.0,151.93,151.85,0.34]
[1718247420653,10.0,151.93,151.86,0.34]
[1718247420860,10.0,151.93,151.87,0.34]
[1718247421047,10.0,151.93,151.84,20.0]
[1718247421242,10.0,151.93,151.82,19.94]
[1718247421746,21.6918,151.94,151.85,100.0]
[1718247422059,21.6918,151.94,151.86,20.0]
[1718247422246,21.6918,151.94,151.87,0.17]
[1718247422442,21.6918,151.94,151.87,0.68]
[1718247422833,21.6918,151.94,151.87,0.17]
[1718247423038,21.6918,151.94,151.83,20.0]
[1718247423039,10.0,151.93,151.83,20.0]
[1718247423650,10.0,151.93,151.8,100.0]
[1718247423972,10.0,151.91,151.79,19.94]
[1718247424554,10.0,151.89,151.79,19.94]
[1718247425464,23.2009,151.88,151.76,25.27825681]
[1718247425673,10.0,151.87,151.77,20.0]
[1718247425957,10.0,151.87,151.77,22.4378]
[1718247426464,10.0,151.84,151.76,22.378]
[1718247427664,10.0,151.84,151.76,19.94]
[1718247428136,10.0,151.84,151.77,0.17]
[1718247428338,10.0,151.84,151.73,115.5068]
[1718247428540,10.0,151.84,151.72,113.58296233]
[1718247428541,6.4739,151.83,151.72,7.49216233]
[1718247428736,10.0,151.78,151.72,0.8194892]
[1718247428939,10.0,151.76,151.72,0.8194892]
[1718247429165,10.0,151.78,151.72,0.8194892]
[1718247432850,10.0,151.8,151.73,0.17]
[1718247433054,10.0,151.8,151.73,3.1185]
[1718247433368,10.0,151.8,151.73,0.68]
[1718247433749,6.4739,151.81,151.73,0.68]
[1718247434169,10.0,151.79,151.73,0.68]
[1718247434662,10.0,151.79,151.72,0.8194892]
[1718247436966,10.0,151.79,151.73,0.34]
[1718247437271,10.0,151.79,151.74,0.34]
[1718247437568,16.4739,151.81,151.75,0.34]
[1718247437774,16.4739,151.81,151.76,0.17]
[1718247438459,10.0,151.79,151.76,0.17]
[1718247439162,10.0,151.79,151.75,0.34]
[1718247442883,10.0,151.79,151.75,0.17]
[1718247443189,10.0,151.79,151.75,0.34]
[1718247443391,6.4739,151.81,151.75,0.34]
[1718247443679,10.0,151.8,151.75,0.34]
[1718247443851,10.0,151.78,151.72,0.8194892]
[1718247444052,10.0,151.78,151.73,0.17]
[1718247445873,10.0,151.78,151.73,0.34]
[1718247446057,10.0,151.78,151.74,0.34]
[1718247446579,10.0,151.78,151.73,0.17]
[1718247447682,10.0,151.78,151.73,0.51]
[1718247448382,10.0,151.78,151.72,0.8194892]
[1718247448860,15.5762,151.77,151.72,0.8194892]
[1718247449884,16.619,151.76,151.72,0.8194892]
[1718247450080,10.0,151.73,151.72,0.8194892]
[1718247450263,10.0,151.75,151.72,0.8194892]
[1718247450462,10.0,151.73,151.72,0.8194892]
[1718247452061,25.8222,151.73,151.66,0.04100865]
[1718247452266,10.0,151.71,151.66,0.04100865]
[1718247453978,10.0,151.69,151.66,0.04100865]